[Event "Late-Titled-Tuesday-Blitz-March-26-2024"]
[Site "Chess.com"]
[Date "2024.03.26"]
[Round "6"]
[White "GelmanAlexander"]
[Black "DishonorOnYourCow"]
[Result "1-0"]
[WhiteElo "2681"]
[BlackElo "2538"]
[TimeControl "180+1"]
[EndTime "15:08:13 PDT"]
[Termination "GelmanAlexander won on time"]

1. c4 {[%clk 0:03:00.9]} 1... e5 {[%clk 0:02:59.7]} 2. e3 {[%clk 0:03:00.4]}
2... Nc6 {[%clk 0:03:00.2]} 3. a3 {[%clk 0:03:00.5]} 3... Nf6 {[%clk 0:02:59.2]}
4. d3 {[%clk 0:03:00.7]} 4... d5 {[%clk 0:02:58.6]} 5. cxd5 {[%clk 0:03:00.7]}
5... Nxd5 {[%clk 0:02:59.3]} 6. Nf3 {[%clk 0:03:01.1]} 6... Be7 {[%clk 0:02:58]}
7. b4 {[%clk 0:03:01.2]} 7... a6 {[%clk 0:02:57.9]} 8. Bb2 {[%clk 0:03:00.9]}
8... f6 {[%clk 0:02:54]} 9. Nbd2 {[%clk 0:03:01.4]} 9... O-O {[%clk 0:02:53.6]}
10. Rc1 {[%clk 0:03:00.4]} 10... Be6 {[%clk 0:02:52.8]} 11. h4 {[%clk 0:03:00]}
11... Qd7 {[%clk 0:02:36.8]} 12. h5 {[%clk 0:02:57.9]} 12... Rad8 {[%clk
0:02:32.3]} 13. Be2 {[%clk 0:02:56.7]} 13... Bd6 {[%clk 0:02:18.1]} 14. h6
{[%clk 0:02:55.6]} 14... g6 {[%clk 0:02:18.1]} 15. Ne4 {[%clk 0:02:52.4]} 15...
Nde7 {[%clk 0:02:02.7]} 16. Qc2 {[%clk 0:02:35.4]} 16... Bf5 {[%clk 0:01:38.5]}
17. Nfd2 {[%clk 0:02:26.5]} 17... Kh8 {[%clk 0:01:17.6]} 18. Rg1 {[%clk
0:02:07]} 18... Ng8 {[%clk 0:01:14.9]} 19. g4 {[%clk 0:02:05.6]} 19... Bxe4
{[%clk 0:00:54.7]} 20. Nxe4 {[%clk 0:02:05.7]} 20... Nxh6 {[%clk 0:00:47.3]} 21.
g5 {[%clk 0:02:04.4]} 21... fxg5 {[%clk 0:00:45.4]} 22. Rxg5 {[%clk 0:02:02.3]}
22... Nf7 {[%clk 0:00:41.5]} 23. Rg1 {[%clk 0:01:58.9]} 23... Qe6 {[%clk
0:00:40.7]} 24. Bg4 {[%clk 0:01:50.2]} 24... Qe7 {[%clk 0:00:40.7]} 25. Qe2
{[%clk 0:01:37.2]} 25... Nh6 {[%clk 0:00:36.3]} 26. Bh3 {[%clk 0:01:36]} 26...
Nf5 {[%clk 0:00:35.3]} 27. Qg4 {[%clk 0:01:26.7]} 27... Nh4 {[%clk 0:00:30.7]}
28. Rg3 {[%clk 0:01:22.9]} 28... Nf5 {[%clk 0:00:30.1]} 29. Rg1 {[%clk
0:01:19.2]} 29... Qh4 {[%clk 0:00:18.2]} 30. Ke2 {[%clk 0:01:09.6]} 30... Qxg4+
{[%clk 0:00:17.6]} 31. Bxg4 {[%clk 0:01:09.7]} 31... Nce7 {[%clk 0:00:18]} 32.
f4 {[%clk 0:01:05.1]} 32... Nc6 {[%clk 0:00:13.3]} 33. Rxc6 {[%clk 0:01:04.2]}
33... bxc6 {[%clk 0:00:13.1]} 34. fxe5 {[%clk 0:01:04.6]} 34... Be7 {[%clk
0:00:12.6]} 35. e6+ {[%clk 0:00:46.8]} 35... Kg8 {[%clk 0:00:12.7]} 36. Bh5
{[%clk 0:00:41.8]} 36... Nd6 {[%clk 0:00:08.3]} 37. Bxg6 {[%clk 0:00:38.8]}
37... hxg6 {[%clk 0:00:08.7]} 38. Rxg6+ {[%clk 0:00:39.2]} 38... Kh7 {[%clk
0:00:09.1]} 39. Rg7+ {[%clk 0:00:39.6]} 39... Kh6 {[%clk 0:00:09.6]} 40. Rxe7
{[%clk 0:00:37.6]} 40... Nxe4 {[%clk 0:00:08.9]} 41. Bg7+ {[%clk 0:00:37.8]}
41... Kg6 {[%clk 0:00:07.9]} 42. Bxf8 {[%clk 0:00:38.2]} 42... Nc3+ {[%clk
0:00:07]} 43. Kd2 {[%clk 0:00:38.1]} 43... Nd5 {[%clk 0:00:06.9]} 44. Rg7+
{[%clk 0:00:33.4]} 44... Kf6 {[%clk 0:00:06.8]} 45. e7 {[%clk 0:00:33.8]} 45...
Re8 {[%clk 0:00:03.8]} 46. Rh7 {[%clk 0:00:34.1]} 46... Ke6 {[%clk 0:00:02]} 47.
e4 {[%clk 0:00:32]} 47... Nf6 {[%clk 0:00:01.9]} 48. Rh6 {[%clk 0:00:31.3]}
48... Kf7 {[%clk 0:00:02.3]} 49. Kc3 {[%clk 0:00:29.7]} 49... Nd7 {[%clk
0:00:01.3]} 50. Rxc6 {[%clk 0:00:29.6]} 50... Nxf8 {[%clk 0:00:01.4]} 51.
exf8=Q+ {[%clk 0:00:29.9]} 51... Kxf8 {[%clk 0:00:01.9]} 52. Rxc7 {[%clk
0:00:30.4]} 52... Re6 {[%clk 0:00:02.4]} 53. Kd4 {[%clk 0:00:29.3]} 53... Rh6
{[%clk 0:00:02.6]} 54. Rc5 {[%clk 0:00:28]} 54... Ke8 {[%clk 0:00:03.1]} 55. e5
{[%clk 0:00:28.2]} 55... Kd8 {[%clk 0:00:03.5]} 56. Kd5 {[%clk 0:00:28.5]} 56...
Rh3 {[%clk 0:00:03.7]} 57. Rc3 {[%clk 0:00:27]} 57... Kd7 {[%clk 0:00:03.9]} 58.
Kc4 {[%clk 0:00:26.5]} 58... Ke6 {[%clk 0:00:03]} 59. d4 {[%clk 0:00:26.9]}
59... Rh1 {[%clk 0:00:03.1]} 60. Kc5 {[%clk 0:00:24.5]} 60... Rd1 {[%clk
0:00:03.1]} 61. Rc4 {[%clk 0:00:24]} 61... Rd3 {[%clk 0:00:02.4]} 62. a4 {[%clk
0:00:24.2]} 62... Ra3 {[%clk 0:00:01.7]} 63. a5 {[%clk 0:00:24.7]} 63... Rd3
{[%clk 0:00:02]} 64. Kb6 {[%clk 0:00:23.9]} 1-0

[Event "Late-Titled-Tuesday-Blitz-March-26-2024"]
[Site "Chess.com"]
[Date "2024.03.26"]
[Round "6"]
[White "Der_Balak_3Halak"]
[Black "mightysmasher"]
[Result "1/2-1/2"]
[WhiteElo "2421"]
[BlackElo "2591"]
[TimeControl "180+1"]
[EndTime "15:08:15 PDT"]
[Termination "Game drawn - insufficient material"]

1. e4 {[%clk 0:02:59.5]} 1... e6 {[%clk 0:02:59.6]} 2. d4 {[%clk 0:02:58.7]}
2... d5 {[%clk 0:03:00.1]} 3. exd5 {[%clk 0:02:59.6]} 3... exd5 {[%clk 0:03:01]}
4. Bd3 {[%clk 0:02:58.5]} 4... Bd6 {[%clk 0:03:00.5]} 5. Ne2 {[%clk 0:02:57.9]}
5... Nf6 {[%clk 0:03:00.7]} 6. f3 {[%clk 0:02:53.4]} 6... O-O {[%clk 0:03:00.7]}
7. O-O {[%clk 0:02:51.8]} 7... c6 {[%clk 0:03:00.5]} 8. Bf4 {[%clk 0:02:51.4]}
8... Qc7 {[%clk 0:02:59.5]} 9. Bxd6 {[%clk 0:02:50.6]} 9... Qxd6 {[%clk
0:02:59.6]} 10. Qd2 {[%clk 0:02:47]} 10... b6 {[%clk 0:02:59.2]} 11. Qf4 {[%clk
0:02:46.1]} 11... Qxf4 {[%clk 0:02:58.7]} 12. Nxf4 {[%clk 0:02:47]} 12... Bb7
{[%clk 0:02:58]} 13. Nd2 {[%clk 0:02:45.6]} 13... c5 {[%clk 0:02:57.9]} 14. c3
{[%clk 0:02:41.9]} 14... Nc6 {[%clk 0:02:57]} 15. dxc5 {[%clk 0:02:37.7]} 15...
bxc5 {[%clk 0:02:56.6]} 16. Rad1 {[%clk 0:02:32.9]} 16... Rad8 {[%clk
0:02:53.2]} 17. Rfe1 {[%clk 0:02:28.1]} 17... Rfe8 {[%clk 0:02:51.9]} 18. Kf2
{[%clk 0:02:20.6]} 18... Ne5 {[%clk 0:02:50.3]} 19. Bc2 {[%clk 0:02:14.7]} 19...
d4 {[%clk 0:02:49.7]} 20. Ba4 {[%clk 0:02:12.9]} 20... Re7 {[%clk 0:02:43.3]}
21. Nc4 {[%clk 0:02:07.5]} 21... Nc6 {[%clk 0:02:28.1]} 22. Rxe7 {[%clk
0:01:36.5]} 22... Nxe7 {[%clk 0:02:26.8]} 23. Na5 {[%clk 0:01:33.8]} 23... Ba6
{[%clk 0:02:19.5]} 24. Nb3 {[%clk 0:01:29.3]} 24... Bc4 {[%clk 0:01:58.6]} 25.
Nxc5 {[%clk 0:01:23.4]} 25... g5 {[%clk 0:01:55.7]} 26. Nh3 {[%clk 0:01:18.1]}
26... g4 {[%clk 0:01:54.9]} 27. Nf4 {[%clk 0:01:17.7]} 27... Rc8 {[%clk
0:01:27.8]} 28. cxd4 {[%clk 0:01:15.4]} 28... Bxa2 {[%clk 0:01:23.2]} 29. b3
{[%clk 0:01:09.6]} 29... gxf3 {[%clk 0:01:13.1]} 30. Ra1 {[%clk 0:01:05.1]}
30... Nf5 {[%clk 0:00:57.4]} 31. Rxa2 {[%clk 0:01:00.3]} 31... Nxd4 {[%clk
0:00:55.9]} 32. b4 {[%clk 0:00:59.1]} 32... Ng4+ {[%clk 0:00:40.5]} 33. Kg3
{[%clk 0:00:55.2]} 33... f2 {[%clk 0:00:34.2]} 34. Ra1 {[%clk 0:00:52.2]} 34...
h5 {[%clk 0:00:21.7]} 35. Bd7 {[%clk 0:00:47.2]} 35... Rb8 {[%clk 0:00:18.4]}
36. Bxg4 {[%clk 0:00:43.4]} 36... hxg4 {[%clk 0:00:19.3]} 37. Kxf2 {[%clk
0:00:42.9]} 37... Rxb4 {[%clk 0:00:18.6]} 38. Rxa7 {[%clk 0:00:41.7]} 38... Rb2+
{[%clk 0:00:16.9]} 39. Kg3 {[%clk 0:00:40.5]} 39... f5 {[%clk 0:00:14.2]} 40.
Ncd3 {[%clk 0:00:31.9]} 40... Rd2 {[%clk 0:00:08.7]} 41. h3 {[%clk 0:00:31]}
41... gxh3 {[%clk 0:00:08]} 42. gxh3 {[%clk 0:00:31.4]} 42... Nc2 {[%clk
0:00:07.5]} 43. Ra5 {[%clk 0:00:27.9]} 43... Ne3 {[%clk 0:00:06.4]} 44. Kf3
{[%clk 0:00:25.4]} 44... Nf1 {[%clk 0:00:03.4]} 45. Rxf5 {[%clk 0:00:23.7]}
45... Ra2 {[%clk 0:00:03.6]} 46. h4 {[%clk 0:00:22.9]} 46... Nd2+ {[%clk
0:00:03.4]} 47. Kg4 {[%clk 0:00:22.6]} 47... Nc4 {[%clk 0:00:03.2]} 48. Ne5
{[%clk 0:00:21.7]} 48... Ne3+ {[%clk 0:00:03.2]} 49. Kg5 {[%clk 0:00:21.9]}
49... Nxf5 {[%clk 0:00:02.7]} 50. Kxf5 {[%clk 0:00:22.8]} 50... Ra5 {[%clk
0:00:02.6]} 51. h5 {[%clk 0:00:22.2]} 51... Kg7 {[%clk 0:00:02.8]} 52. Nd3
{[%clk 0:00:18.8]} 52... Kh6 {[%clk 0:00:02.5]} 53. Kg4 {[%clk 0:00:18.4]} 53...
Ra4+ {[%clk 0:00:02.9]} 54. Nf4 {[%clk 0:00:18.2]} 54... Rxf4+ {[%clk
0:00:01.4]} 55. Kg3 {[%clk 0:00:19.1]} 55... Kxh5 {[%clk 0:00:02]} 56. Kxf4
{[%clk 0:00:19.5]} 1/2-1/2

[Event "Late-Titled-Tuesday-Blitz-March-26-2024"]
[Site "Chess.com"]
[Date "2024.03.26"]
[Round "6"]
[White "Sanan_Sjugirov"]
[Black "DanielDardha2005"]
[Result "1/2-1/2"]
[WhiteElo "3001"]
[BlackElo "2868"]
[TimeControl "180+1"]
[EndTime "15:08:22 PDT"]
[Termination "Game drawn - insufficient material"]

1. d4 {[%clk 0:02:56.5]} 1... Nf6 {[%clk 0:02:58.4]} 2. c4 {[%clk 0:02:57]} 2...
e6 {[%clk 0:02:58.6]} 3. Nf3 {[%clk 0:02:57.6]} 3... h6 {[%clk 0:02:58.9]} 4. a3
{[%clk 0:02:51.5]} 4... c5 {[%clk 0:02:52.4]} 5. d5 {[%clk 0:02:50]} 5... d6
{[%clk 0:02:50.8]} 6. Nc3 {[%clk 0:02:49.3]} 6... exd5 {[%clk 0:02:50.8]} 7.
cxd5 {[%clk 0:02:49.4]} 7... g6 {[%clk 0:02:51.4]} 8. Bf4 {[%clk 0:02:45.4]}
8... Bg7 {[%clk 0:02:49.6]} 9. e3 {[%clk 0:02:41.1]} 9... O-O {[%clk 0:02:48.6]}
10. h3 {[%clk 0:02:41]} 10... a6 {[%clk 0:02:42.9]} 11. a4 {[%clk 0:02:40.6]}
11... Re8 {[%clk 0:02:38.5]} 12. Nd2 {[%clk 0:02:39.2]} 12... Nh5 {[%clk
0:02:09.6]} 13. Bh2 {[%clk 0:02:38.8]} 13... Nd7 {[%clk 0:01:47.4]} 14. Be2
{[%clk 0:02:35.9]} 14... Ne5 {[%clk 0:01:46.1]} 15. O-O {[%clk 0:02:32.8]} 15...
Qh4 {[%clk 0:01:35.9]} 16. Nde4 {[%clk 0:02:19.4]} 16... Bxh3 {[%clk 0:01:24.8]}
17. gxh3 {[%clk 0:01:27.9]} 17... Qxh3 {[%clk 0:01:25.7]} 18. Ng3 {[%clk
0:01:26.7]} 18... Nf6 {[%clk 0:01:12.7]} 19. f3 {[%clk 0:01:15.2]} 19... h5
{[%clk 0:01:05.7]} 20. Rf2 {[%clk 0:01:14.1]} 20... Bh6 {[%clk 0:01:00.5]} 21.
Bf1 {[%clk 0:01:11.6]} 21... Qh4 {[%clk 0:00:57.6]} 22. Qe2 {[%clk 0:00:52.5]}
22... Neg4 {[%clk 0:00:57.2]} 23. fxg4 {[%clk 0:00:46.5]} 23... Rxe3 {[%clk
0:00:44.1]} 24. Qc2 {[%clk 0:00:35.2]} 24... Nxg4 {[%clk 0:00:35.1]} 25. Nge4
{[%clk 0:00:28.8]} 25... Nxf2 {[%clk 0:00:10.4]} 26. Qxf2 {[%clk 0:00:29]} 26...
Rxe4 {[%clk 0:00:09.4]} 27. Nxe4 {[%clk 0:00:23.9]} 27... Qxe4 {[%clk
0:00:10.2]} 28. Re1 {[%clk 0:00:20.7]} 28... Qxd5 {[%clk 0:00:08.5]} 29. Bg2
{[%clk 0:00:20]} 29... Qb3 {[%clk 0:00:05.9]} 30. Bxd6 {[%clk 0:00:16.7]} 30...
Bg7 {[%clk 0:00:03.9]} 31. Be5 {[%clk 0:00:14.9]} 31... Bxe5 {[%clk 0:00:03.2]}
32. Rxe5 {[%clk 0:00:15.8]} 32... Qd1+ {[%clk 0:00:03.2]} 33. Re1 {[%clk
0:00:15.4]} 33... Qxa4 {[%clk 0:00:03.5]} 34. Bxb7 {[%clk 0:00:12.9]} 34... Rb8
{[%clk 0:00:03.3]} 35. Bd5 {[%clk 0:00:12.4]} 35... Qg4+ {[%clk 0:00:02.9]} 36.
Kh2 {[%clk 0:00:11.4]} 36... Rf8 {[%clk 0:00:01.8]} 37. Re7 {[%clk 0:00:10.7]}
37... Qd4 {[%clk 0:00:01.8]} 38. Bxf7+ {[%clk 0:00:07.2]} 38... Kg7 {[%clk
0:00:02.2]} 39. Bc4+ {[%clk 0:00:05.5]} 39... Kh6 {[%clk 0:00:01.3]} 40. Qxd4
{[%clk 0:00:05.8]} 40... cxd4 {[%clk 0:00:01.3]} 41. Re2 {[%clk 0:00:04.1]}
41... Rd8 {[%clk 0:00:01.1]} 42. Bxa6 {[%clk 0:00:03.5]} 42... Rd6 {[%clk
0:00:01.7]} 43. Bd3 {[%clk 0:00:03.5]} 43... g5 {[%clk 0:00:02.3]} 44. Re7
{[%clk 0:00:03.2]} 44... g4 {[%clk 0:00:02.7]} 45. Kg3 {[%clk 0:00:03.7]} 45...
Kg5 {[%clk 0:00:03.3]} 46. Re5+ {[%clk 0:00:03.9]} 46... Kf6 {[%clk 0:00:03.5]}
47. Rxh5 {[%clk 0:00:03.8]} 47... Kg7 {[%clk 0:00:03.5]} 48. Rg5+ {[%clk
0:00:04]} 48... Kf6 {[%clk 0:00:04]} 49. Rg6+ {[%clk 0:00:04.1]} 49... Ke5
{[%clk 0:00:04.5]} 50. Rxd6 {[%clk 0:00:04.2]} 50... Kxd6 {[%clk 0:00:05.4]} 51.
b3 {[%clk 0:00:03.4]} 51... Kc5 {[%clk 0:00:05.6]} 52. Kf4 {[%clk 0:00:02.1]}
52... Kb4 {[%clk 0:00:05.3]} 53. Bc4 {[%clk 0:00:02.7]} 53... d3 {[%clk
0:00:04.6]} 54. Ke3 {[%clk 0:00:02.9]} 54... g3 {[%clk 0:00:05.2]} 55. Bd5
{[%clk 0:00:02.2]} 55... g2 {[%clk 0:00:04.2]} 56. Bxg2 {[%clk 0:00:02.3]} 56...
Kxb3 {[%clk 0:00:04.2]} 57. Kd2 {[%clk 0:00:02.9]} 57... Kb4 {[%clk 0:00:04.5]}
58. Bf1 {[%clk 0:00:03.8]} 58... Kc5 {[%clk 0:00:05.4]} 59. Bxd3 {[%clk
0:00:04.7]} 1/2-1/2

[Event "Late-Titled-Tuesday-Blitz-March-26-2024"]
[Site "Chess.com"]
[Date "2024.03.26"]
[Round "6"]
[White "MPCandelario"]
[Black "HajiyevKanan"]
[Result "0-1"]
[WhiteElo "2664"]
[BlackElo "2553"]
[TimeControl "180+1"]
[EndTime "15:08:25 PDT"]
[Termination "HajiyevKanan won on time"]

1. e4 {[%clk 0:02:00.7]} 1... c6 {[%clk 0:02:58.1]} 2. d4 {[%clk 0:02:00.2]}
2... d5 {[%clk 0:02:59]} 3. e5 {[%clk 0:01:59.3]} 3... a6 {[%clk 0:02:59.5]} 4.
Nf3 {[%clk 0:01:58.1]} 4... Bg4 {[%clk 0:02:59.3]} 5. Nbd2 {[%clk 0:01:57.2]}
5... e6 {[%clk 0:02:59.4]} 6. h3 {[%clk 0:01:57.3]} 6... Bh5 {[%clk 0:03:00]} 7.
Be2 {[%clk 0:01:50.1]} 7... c5 {[%clk 0:02:59.5]} 8. c3 {[%clk 0:01:49.1]} 8...
Nc6 {[%clk 0:02:59.9]} 9. O-O {[%clk 0:01:45.3]} 9... Qb6 {[%clk 0:03:00.1]} 10.
dxc5 {[%clk 0:01:42.9]} 10... Bxc5 {[%clk 0:03:00.1]} 11. b4 {[%clk 0:01:43]}
11... Bf8 {[%clk 0:02:57.4]} 12. a4 {[%clk 0:01:42.9]} 12... Nge7 {[%clk
0:02:56.6]} 13. a5 {[%clk 0:01:35.8]} 13... Qc7 {[%clk 0:02:56.6]} 14. Re1
{[%clk 0:01:30.8]} 14... Bxf3 {[%clk 0:02:44.5]} 15. Nxf3 {[%clk 0:01:30.1]}
15... Ng6 {[%clk 0:02:45.2]} 16. b5 {[%clk 0:01:29]} 16... Ncxe5 {[%clk
0:02:16.5]} 17. Nxe5 {[%clk 0:01:22.6]} 17... Nxe5 {[%clk 0:02:15.2]} 18. bxa6
{[%clk 0:01:22.4]} 18... bxa6 {[%clk 0:02:05.8]} 19. Bf4 {[%clk 0:00:53.8]}
19... Bd6 {[%clk 0:02:04.3]} 20. Bxe5 {[%clk 0:00:53.1]} 20... Bxe5 {[%clk
0:02:05.2]} 21. Qa4+ {[%clk 0:00:53]} 21... Qd7 {[%clk 0:01:48.1]} 22. Qa3
{[%clk 0:00:41.2]} 22... Bd6 {[%clk 0:01:40.5]} 23. Qa2 {[%clk 0:00:37.5]} 23...
O-O {[%clk 0:01:40.4]} 24. c4 {[%clk 0:00:38]} 24... d4 {[%clk 0:01:37.5]} 25.
Bd3 {[%clk 0:00:33.3]} 25... Bb4 {[%clk 0:01:36.7]} 26. Red1 {[%clk 0:00:31.9]}
26... Bc3 {[%clk 0:01:36.2]} 27. Rab1 {[%clk 0:00:31.8]} 27... Rfb8 {[%clk
0:01:35.1]} 28. Rb6 {[%clk 0:00:31.7]} 28... Rc8 {[%clk 0:01:11.5]} 29. Rdb1
{[%clk 0:00:29.6]} 29... g6 {[%clk 0:01:10.7]} 30. Be4 {[%clk 0:00:25]} 30...
Ra7 {[%clk 0:01:09.2]} 31. Bd3 {[%clk 0:00:18.8]} 31... Kg7 {[%clk 0:01:08.8]}
32. g3 {[%clk 0:00:18.8]} 32... Rc5 {[%clk 0:01:08.8]} 33. Qb3 {[%clk
0:00:15.5]} 33... Bxa5 {[%clk 0:01:03.2]} 34. Rb8 {[%clk 0:00:15.6]} 34... Rc8
{[%clk 0:00:59.6]} 35. h4 {[%clk 0:00:09.6]} 35... h5 {[%clk 0:00:56.4]} 36.
Rxc8 {[%clk 0:00:07.9]} 36... Qxc8 {[%clk 0:00:56.5]} 37. Qa4 {[%clk 0:00:08]}
37... Bc3 {[%clk 0:00:52.6]} 38. Qb3 {[%clk 0:00:05.6]} 38... a5 {[%clk
0:00:50.8]} 39. Qa4 {[%clk 0:00:05.8]} 39... Rb7 {[%clk 0:00:41.6]} 40. Rb5
{[%clk 0:00:05.4]} 40... Rxb5 {[%clk 0:00:39.8]} 41. cxb5 {[%clk 0:00:06.3]}
41... Qc5 {[%clk 0:00:39.1]} 42. Be4 {[%clk 0:00:04.7]} 42... Qb6 {[%clk
0:00:35.7]} 43. Qb3 {[%clk 0:00:04.4]} 43... Qc5 {[%clk 0:00:34.3]} 44. Bd3
{[%clk 0:00:04.6]} 44... Bb4 {[%clk 0:00:32.6]} 45. Qa4 {[%clk 0:00:04.3]} 45...
Qc3 {[%clk 0:00:31.5]} 46. Qd1 {[%clk 0:00:03.7]} 46... Kf8 {[%clk 0:00:28.1]}
47. b6 {[%clk 0:00:03.8]} 47... Qc6 {[%clk 0:00:27.9]} 48. b7 {[%clk 0:00:01.1]}
48... Qxb7 {[%clk 0:00:27.8]} 49. Qc1 {[%clk 0:00:01.1]} 49... Qb6 {[%clk
0:00:23.9]} 50. Qh6+ {[%clk 0:00:01.5]} 50... Ke7 {[%clk 0:00:22.1]} 51. Qg5+
{[%clk 0:00:02.1]} 51... Kf8 {[%clk 0:00:20.6]} 52. Qh6+ {[%clk 0:00:02.4]}
52... Kg8 {[%clk 0:00:21.2]} 53. Bxg6 {[%clk 0:00:02]} 53... fxg6 {[%clk
0:00:22]} 54. Qxg6+ {[%clk 0:00:02.9]} 54... Kf8 {[%clk 0:00:22.7]} 55. Qf6+
{[%clk 0:00:02.7]} 55... Ke8 {[%clk 0:00:23.1]} 56. Qh8+ {[%clk 0:00:02.5]}
56... Kd7 {[%clk 0:00:23.1]} 57. Qh7+ {[%clk 0:00:02.4]} 57... Be7 {[%clk
0:00:22.7]} 58. Qxh5 {[%clk 0:00:01.7]} 58... a4 {[%clk 0:00:21.9]} 59. Qd1
{[%clk 0:00:01.2]} 59... a3 {[%clk 0:00:21.8]} 60. Qa4+ {[%clk 0:00:01.7]} 60...
Qc6 {[%clk 0:00:21.2]} 61. Qa7+ {[%clk 0:00:02.3]} 61... Ke8 {[%clk 0:00:21.6]}
62. Qb8+ {[%clk 0:00:01.8]} 62... Kf7 {[%clk 0:00:22.3]} 63. Qf4+ {[%clk
0:00:02.2]} 63... Bf6 {[%clk 0:00:23]} 64. Qb8 {[%clk 0:00:01.9]} 64... Qc1+
{[%clk 0:00:21.7]} 65. Kh2 {[%clk 0:00:01.7]} 65... Qb2 {[%clk 0:00:21.5]} 66.
Qa7+ {[%clk 0:00:01.7]} 66... Be7 {[%clk 0:00:22.1]} 0-1

[Event "Late-Titled-Tuesday-Blitz-March-26-2024"]
[Site "Chess.com"]
[Date "2024.03.26"]
[Round "6"]
[White "JackRodgers"]
[Black "gorgeous1083"]
[Result "1-0"]
[WhiteElo "2537"]
[BlackElo "2048"]
[TimeControl "180+1"]
[EndTime "15:08:31 PDT"]
[Termination "JackRodgers won by resignation"]

1. c4 {[%clk 0:03:00.9]} 1... c5 {[%clk 0:02:57.5]} 2. Nc3 {[%clk 0:03:00.8]}
2... Nc6 {[%clk 0:02:57]} 3. g3 {[%clk 0:03:00.6]} 3... g6 {[%clk 0:02:57.5]} 4.
Bg2 {[%clk 0:03:00.7]} 4... Bg7 {[%clk 0:02:58.4]} 5. Nf3 {[%clk 0:03:01.2]}
5... Nf6 {[%clk 0:02:58.3]} 6. O-O {[%clk 0:03:01.2]} 6... O-O {[%clk
0:02:58.1]} 7. d4 {[%clk 0:03:01.8]} 7... cxd4 {[%clk 0:02:56.4]} 8. Nxd4 {[%clk
0:03:02.7]} 8... Nxd4 {[%clk 0:02:43.2]} 9. Qxd4 {[%clk 0:03:01.5]} 9... d6
{[%clk 0:02:43.1]} 10. b3 {[%clk 0:02:46.6]} 10... a6 {[%clk 0:02:41.6]} 11. Bb2
{[%clk 0:02:46.1]} 11... Rb8 {[%clk 0:02:41.1]} 12. Nd5 {[%clk 0:02:45]} 12...
b5 {[%clk 0:02:29]} 13. cxb5 {[%clk 0:02:32.2]} 13... Rxb5 {[%clk 0:02:21.4]}
14. e4 {[%clk 0:02:14.8]} 14... Be6 {[%clk 0:02:11]} 15. Rac1 {[%clk 0:02:08.1]}
15... Bxd5 {[%clk 0:01:48.7]} 16. exd5 {[%clk 0:02:07.1]} 16... Qb6 {[%clk
0:01:36.9]} 17. Qxb6 {[%clk 0:01:52.2]} 17... Rxb6 {[%clk 0:01:37]} 18. Rfe1
{[%clk 0:01:52.9]} 18... Rb7 {[%clk 0:01:34.7]} 19. Rc6 {[%clk 0:01:50.9]} 19...
Ra8 {[%clk 0:01:29.7]} 20. Rec1 {[%clk 0:01:39.9]} 20... Nd7 {[%clk 0:01:26.2]}
21. Bxg7 {[%clk 0:01:34.8]} 21... Kxg7 {[%clk 0:01:27.1]} 22. Bf1 {[%clk
0:01:18.2]} 22... a5 {[%clk 0:01:22.2]} 23. Rc7 {[%clk 0:01:16.2]} 23... Raa7
{[%clk 0:01:21.2]} 24. Rxb7 {[%clk 0:01:13.8]} 24... Rxb7 {[%clk 0:01:22.1]} 25.
Rc6 {[%clk 0:01:09.3]} 25... Nc5 {[%clk 0:01:10.6]} 26. Ba6 {[%clk 0:00:54.4]}
26... Ra7 {[%clk 0:01:01.9]} 27. Bc4 {[%clk 0:00:49]} 27... Kf6 {[%clk
0:00:57.7]} 28. f4 {[%clk 0:00:49.5]} 28... Kf5 {[%clk 0:00:55.8]} 29. Rc8
{[%clk 0:00:44.8]} 29... Ke4 {[%clk 0:00:51.6]} 30. Kf2 {[%clk 0:00:40]} 30...
Kd4 {[%clk 0:00:39.6]} 31. Rf8 {[%clk 0:00:34]} 31... f6 {[%clk 0:00:36.3]} 32.
Rf7 {[%clk 0:00:33.5]} 32... h5 {[%clk 0:00:34.8]} 33. Rg7 {[%clk 0:00:33.1]}
33... g5 {[%clk 0:00:34.4]} 34. fxg5 {[%clk 0:00:32.2]} 34... fxg5 {[%clk
0:00:34.3]} 35. Kf3 {[%clk 0:00:31.4]} 35... g4+ {[%clk 0:00:26.5]} 36. Ke2
{[%clk 0:00:28.8]} 36... Ne4 {[%clk 0:00:20.1]} 37. Rh7 {[%clk 0:00:18.3]} 37...
Nf6 {[%clk 0:00:20.2]} 38. Rh8 {[%clk 0:00:18.8]} 38... a4 {[%clk 0:00:19.8]}
39. Rc8 {[%clk 0:00:15.4]} 39... axb3 {[%clk 0:00:19.6]} 40. Bxb3 {[%clk
0:00:16.3]} 40... Rb7 {[%clk 0:00:17.9]} 41. Rc4+ {[%clk 0:00:15.9]} 41... Kxd5
{[%clk 0:00:15.8]} 42. Rc2+ {[%clk 0:00:06]} 42... Ke5 {[%clk 0:00:14.5]} 43.
Kf2 {[%clk 0:00:06.3]} 43... Ne4+ {[%clk 0:00:14]} 44. Kg2 {[%clk 0:00:07]}
44... Nc5 {[%clk 0:00:14.2]} 45. Re2+ {[%clk 0:00:07]} 45... Kf6 {[%clk
0:00:13.9]} 46. Bd5 {[%clk 0:00:07.5]} 46... Rb4 {[%clk 0:00:11.6]} 47. Bc6
{[%clk 0:00:06.7]} 47... Rc4 {[%clk 0:00:11]} 48. Be8 {[%clk 0:00:06.7]} 48...
Ne4 {[%clk 0:00:09.9]} 49. Bxh5 {[%clk 0:00:05.8]} 49... Kg5 {[%clk 0:00:09]}
50. Bf7 {[%clk 0:00:05.7]} 50... e5 {[%clk 0:00:07.8]} 51. Bxc4 {[%clk
0:00:05.6]} 51... Nc3 {[%clk 0:00:06.9]} 52. Rc2 {[%clk 0:00:05.7]} 52... Ne4
{[%clk 0:00:06.5]} 53. Bd5 {[%clk 0:00:05.4]} 53... Nc5 {[%clk 0:00:06.4]} 54.
Rxc5 {[%clk 0:00:02.7]} 54... dxc5 {[%clk 0:00:06.1]} 55. Kf2 {[%clk 0:00:03.6]}
55... Kf5 {[%clk 0:00:02.9]} 56. Ke3 {[%clk 0:00:04.5]} 56... e4 {[%clk
0:00:03.3]} 57. Bxe4+ {[%clk 0:00:04]} 1-0